bitfinex/quotes_ETHUSD_20251125
["timestamp","ask_amount","ask_price","bid_price","bid_amount"]
[1764032709816,0.6419,2945.7,2944.8,0.0041]
[1764032710641,0.4555,2945.6,2944.7,10.18879501]
[1764032710943,0.002,2945.3,2944.8,0.72559411]
[1764032711338,0.4575,2945.3,2944.8,0.72559411]
[1764032711920,0.002,2945.3,2944.9,10.18710312]
[1764032713747,0.002,2945.3,2945.2,0.0041]
[1764032714244,0.927,2945.3,2945.1,6.79094088]
[1764032714551,0.4575,2945.3,2945.1,6.79094088]
[1764032714749,0.002,2945.3,2945.2,0.0041]
[1764032715366,0.002,2945.3,2945.2,0.0082]
[1764032715567,0.002,2945.3,2945.2,0.0041]
[1764032716269,0.002,2945.3,2945.2,0.25405355]
[1764032716481,0.002,2945.3,2945.2,0.66365755]
[1764032716633,0.002,2945.3,2945.2,0.629704]
[1764032717044,0.002,2945.3,2945.2,0.625604]
[1764032717249,0.002,2945.3,2945.2,0.0041]
[1764032717751,0.002,2945.3,2945.2,0.2201]
[1764032718083,0.002,2945.3,2945.2,0.72559411]
[1764032718248,0.002,2945.3,2945.2,4.12504926]
[1764032719569,0.4715,2945.3,2945.2,4.12094926]
[1764032720297,0.002,2945.3,2945.2,4.12504926]
[1764032722040,0.002,2945.3,2945.2,4.12094926]
[1764032722237,0.002,2945.3,2945.2,4.12504926]
[1764032724863,0.002,2945.3,2945.2,4.16310281]
[1764032725064,0.002,2945.3,2945.2,4.66160681]
[1764032725367,0.002,2945.3,2945.2,4.62765326]
[1764032725873,0.002,2945.6,2945.5,0.405504]
[1764032726043,0.002,2945.6,2945.5,0.625604]
[1764032726366,0.002,2945.6,2945.5,0.216]
[1764032726600,0.4709,2945.6,2945.5,0.216]
[1764032726742,0.9523,2945.6,2945.4,0.216]
[1764032726938,0.4689,2945.5,2945.4,0.216]
[1764032727140,0.9503,2945.5,2945.3,0.216]
[1764032727342,0.9503,2945.5,2945.2,10.91165956]
[1764032727567,0.4689,2945.3,2945.2,4.33694926]
[1764032729051,0.002,2945.6,2945.2,11.13175956]
[1764032729264,0.002,2945.6,2945.5,0.0041]
[1764032730076,0.002,2945.6,2945.5,0.03805009]
[1764032730497,0.002,2945.6,2945.5,0.0041]
[1764032730676,0.002,2945.6,2945.5,0.03805009]
[1764032731066,0.002,2945.6,2945.5,4.12470344]
[1764032731266,0.002,2945.6,2945.5,4.12060344]
[1764032731468,0.002,2945.6,2945.5,4.12470344]
[1764032731880,0.002,2945.6,2945.5,4.56415753]
[1764032732098,0.002,2945.6,2945.5,4.56825753]
[1764032732285,0.002,2945.6,2945.5,4.53430744]
[1764032732602,0.002,2945.6,2945.5,4.56825753]
[1764032733102,0.002,2945.6,2945.5,4.53020744]
[1764032735177,0.002,2945.6,2945.5,8.42825753]
[1764032735413,0.002,2945.6,2945.5,8.48730744]
[1764032735607,0.002,2945.6,2945.5,8.39430744]
[1764032735908,0.002,2945.6,2945.5,8.39020744]
[1764032737303,0.4709,2945.6,2945.5,7.98060344]
[1764032737487,0.4709,2945.6,2945.5,8.19660344]
[1764032737687,0.9523,2945.6,2945.5,4.12060344]
[1764032738189,0.9523,2945.6,2945.5,3.39500933]
[1764032739319,0.9523,2945.6,2945.1,3.3954473]
[1764032739494,0.4689,2945.2,2945.1,0.72559411]
[1764032740099,0.9503,2945.2,2945.0,6.79217146]
[1764032740303,0.4689,2945.1,2945.0,3.39658573]
[1764032740479,0.4814,2945.4,2945.0,10.18775719]
[1764032740682,0.4689,2945.1,2945.0,3.39658573]
[1764032741815,0.4689,2945.1,2945.0,0.001]
[1764032741980,0.4834,2945.6,2945.0,0.0051]
[1764032742713,0.4689,2945.1,2945.0,0.001]
[1764032743101,0.9503,2945.1,2945.0,0.001]
[1764032746827,0.002,2945.3,2945.0,0.0051]
[1764032747126,0.002,2945.3,2945.2,0.0041]
[1764032747337,0.002,2945.3,2945.1,0.216]
[1764032747508,0.4689,2945.2,2945.1,0.216]
[1764032747714,0.4689,2945.2,2945.1,3.61147044]
[1764032749030,0.4689,2945.2,2945.1,3.39547044]
[1764032749532,0.002,2945.3,2945.1,6.79094088]
[1764032750720,0.002,2945.3,2945.2,0.0041]
[1764032752122,0.453,2945.3,2945.1,6.79094088]
[1764032752317,0.9409,2945.2,2945.1,3.39547044]
[1764032752829,0.9409,2945.2,2945.0,3.39657177]
[1764032753035,0.9409,2945.1,2945.0,3.39657177]
[1764032753234,0.9409,2945.1,2945.0,0.001]
[1764032757610,1.37471486,2945.1,2945.0,0.001]
[1764032757809,0.9409,2945.1,2945.0,0.001]
[1764032761045,0.451,2945.1,2945.0,0.001]
[1764032761234,0.9417,2945.1,2945.0,0.001]
[1764032761430,0.002,2945.3,2945.0,0.001]
[1764032761646,0.4769,2945.1,2945.0,0.001]
[1764032762027,0.4927,2945.3,2945.0,0.001]
[1764032762215,0.002,2945.3,2945.0,0.001]
[1764032763347,0.002,2945.3,2945.2,0.0041]
[1764032765463,0.002,2945.3,2945.2,0.0082]
[1764032766334,0.002,2945.3,2945.2,0.73379411]
[1764032766951,0.002,2945.3,2945.2,4.12914926]
[1764032769850,0.002,2945.3,2945.2,4.12504926]
[1764032772047,0.002,2945.3,2945.2,4.56860681]
[1764032772256,0.002,2945.3,2945.2,8.52160681]
[1764032772458,0.002,2945.6,2945.3,0.405504]
[1764032772660,0.002,2945.9,2945.7,0.093]
[1764032772870,0.6865,2946.9,2945.8,0.3172]
[1764032772871,0.1958,2946.9,2945.8,0.3172]
[1764032773046,0.002,2946.9,2946.1,4.52951602]
[1764032773574,0.002,2946.9,2946.1,4.53361602]
[1764032774370,0.002,2946.9,2946.1,4.62661602]
[1764032775058,0.1841,2946.9,2946.1,4.62661602]
[1764032775259,0.1841,2946.9,2946.1,4.52951602]
[1764032775572,0.1841,2946.9,2946.1,4.74551602]
[1764032775773,0.4907,2946.7,2946.1,4.74551602]
[1764032776143,0.002,2946.9,2946.1,4.84261602]
[1764032777978,0.6728,2946.8,2946.1,3.39431791]
[1764032778155,0.6728,2946.8,2946.1,3.39841791]
[1764032778354,0.6728,2946.8,2946.1,4.12401202]
[1764032778567,0.6728,2946.8,2946.1,4.52951602]
[1764032778950,0.6728,2946.8,2946.1,4.12401202]
[1764032779164,0.002,2946.5,2946.1,4.52541602]
[1764032779372,0.4789,2946.2,2946.1,4.11991202]
[1764032779574,0.9696,2946.2,2946.1,3.39431791]
[1764032780295,0.4789,2946.2,2946.1,3.39431791]
[1764032780797,0.9302,2946.2,2946.1,3.39431791]
[1764032781805,0.9302,2946.2,2945.9,7.51469081]
[1764032782008,0.9389,2946.1,2945.9,7.51469081]
[1764032782167,0.4876,2946.0,2945.9,4.12014246]
[1764032783074,0.9389,2946.0,2945.9,4.12014246]
[1764032784766,0.4876,2946.0,2945.9,4.12014246]
[1764032786064,0.9389,2946.0,2945.9,3.39454835]
[1764032786286,0.002,2946.2,2945.9,6.7890967]
[1764032788128,0.4533,2946.2,2945.8,3.39463273]
[1764032788291,0.6719,2945.9,2945.8,0.72559411]
[1764032788916,1.1232,2945.9,2945.8,0.72559411]
[1764032790214,1.1232,2945.9,2945.8,4.12025769]
[1764032791423,1.1232,2945.9,2945.8,3.39466358]
[1764032791626,1.1232,2945.9,2945.5,3.86]
[1764032791627,1.1232,2945.9,2945.6,3.39489407]
[1764032791798,1.1232,2945.9,2945.2,0.72559411]
[1764032791799,0.4876,2945.7,2945.2,6.7907103]
[1764032791995,0.4876,2945.3,2945.2,4.12094926]
[1764032792513,0.9389,2945.3,2945.2,4.12094926]
[1764032795314,0.1843,2945.9,2945.2,10.91165956]
[1764032795514,0.4876,2945.3,2945.2,4.12094926]
[1764032796024,0.9389,2945.3,2945.2,4.12094926]
[1764032796437,0.1843,2945.9,2945.2,10.91165956]
[1764032796438,0.4513,2945.7,2945.2,10.91165956]
[1764032796844,0.4876,2945.3,2945.2,4.12094926]
[1764032797149,0.4513,2945.7,2945.2,10.91165956]
[1764032799054,0.4876,2945.3,2945.2,4.12094926]
[1764032799845,0.9389,2945.3,2945.1,3.39638945]
[1764032800051,0.9389,2945.2,2945.1,3.39638945]
[1764032800358,0.9389,2945.2,2945.1,0.001]
[1764032805362,1.44486298,2945.2,2945.1,0.001]
[1764032805729,0.9389,2945.2,2945.1,0.001]
[1764032806219,0.9389,2945.2,2944.9,0.001]
[1764032806220,1.66449411,2945.1,2944.9,0.001]
[1764032806421,0.7036,2945.0,2944.7,0.001]
[1764032806623,0.4876,2944.7,2944.4,0.001]
[1764032806826,4.28927089,2944.5,2943.5,0.001]
[1764032807131,0.4876,2944.2,2943.5,0.001]
[1764032807453,0.6719,2943.9,2943.5,0.001]
[1764032807824,0.4513,2944.1,2943.5,0.001]
[1764032808651,0.4876,2943.9,2943.5,0.001]
[1764032809322,0.1843,2944.2,2943.5,0.001]
[1764032809519,0.4876,2943.9,2943.5,0.001]
[1764032809821,0.1843,2944.2,2943.5,0.001]
[1764032810028,0.6722,2944.2,2943.5,0.001]
[1764032810429,0.4819,2943.9,2943.5,0.001]
[1764032811224,0.4819,2943.9,2943.5,6.79563224]
[1764032811455,0.9698,2943.9,2943.5,6.79563224]
[1764032813154,0.9698,2943.9,2943.5,0.001]
[1764032815123,1.40644297,2943.9,2943.5,0.001]
[1764032815329,1.62244297,2943.9,2943.5,0.001]
[1764032816650,1.1858,2943.9,2943.5,0.001]
[1764032823265,0.216,2943.9,2943.5,0.001]
[1764032823441,0.216,2943.9,2943.8,0.0071]
[1764032823646,1.2135,2943.9,2943.8,0.001]
[1764032824070,0.216,2943.9,2943.8,0.001]
[1764032824612,1.2135,2943.9,2943.8,0.001]
[1764032825198,0.7142,2943.9,2943.8,0.001]
[1764032825745,1.2135,2943.9,2943.8,0.001]
[1764032825917,0.216,2943.9,2943.8,0.001]
[1764032827812,0.216,2943.9,2943.8,0.0071]
[1764032828041,0.7142,2943.9,2943.8,0.001]
[1764032828342,1.2135,2943.9,2943.8,0.001]
[1764032828952,5.33594862,2943.9,2943.8,0.001]
[1764032829160,5.33594862,2943.9,2943.5,0.001]
[1764032829161,0.72559411,2943.8,2943.5,0.001]
[1764032829449,0.4982,2943.6,2943.5,0.001]
[1764032829635,0.81510157,2943.6,2943.5,0.001]
[1764032829831,5.43719638,2943.6,2943.5,0.001]
[1764032830261,15.87482108,2943.6,2943.2,0.001]
[1764032830417,12.47469611,2943.3,2943.2,0.001]
[1764032830613,12.68370168,2943.3,2943.2,0.001]
[1764032830832,12.67223668,2943.3,2943.2,0.001]
[1764032831144,2.66149968,2943.3,2943.2,0.001]
[1764032831348,2.6104885,2943.3,2943.2,0.001]
[1764032832146,1.88489439,2943.3,2943.2,0.001]
[1764032832355,1.53040157,2943.3,2943.2,0.001]
[1764032836342,5.65354265,2943.3,2943.2,0.001]
[1764032838449,6.05904665,2943.3,2943.2,0.001]
[1764032839936,2.66149968,2943.3,2943.2,0.001]
[1764032840664,6.05904665,2943.3,2943.2,0.001]
[1764032840866,3.20163325,2943.3,2943.2,0.001]
[1764032841254,2.48633325,2943.3,2943.2,0.001]
[1764032841569,2.25439568,2943.3,2943.2,0.001]
[1764032845078,1.75669568,2943.3,2943.2,0.001]
[1764032845271,2.25439568,2943.3,2943.2,0.001]
[1764032846584,1.75669568,2943.3,2943.2,0.001]
[1764032846772,1.93236525,2943.3,2943.2,0.001]
[1764032847291,1.43416525,2943.3,2943.2,0.001]
[1764032847579,1.93206525,2943.3,2943.2,0.001]
[1764032847763,2.43035003,2943.3,2943.2,0.001]
[1764032848085,5.827897,2943.3,2943.2,0.001]
[1764032848452,2.43035003,2943.3,2943.2,0.001]
[1764032848983,5.827897,2943.3,2943.2,0.001]
[1764032855001,2.43035003,2943.3,2943.2,0.001]
[1764032855414,0.31748635,2943.3,2943.2,0.0081]
[1764032855697,0.53348635,2943.3,2943.2,0.001]
[1764032856052,5.65222743,2943.3,2943.2,0.001]
[1764032858490,6.38682071,2943.3,2943.2,0.001]
[1764032858995,2.49157374,2943.3,2943.2,0.001]
[1764032859291,0.53348635,2943.3,2943.2,0.0081]
[1764032860755,0.53348635,2943.3,2943.2,3.4057624]
[1764032860956,0.216,2943.3,2943.2,3.4128624]
[1764032861288,0.002,2943.5,2943.2,6.8105248]
[1764032861504,0.002,2943.5,2943.4,5.00507464]
[1764032861788,0.002,2943.5,2943.4,5.73066875]
[1764032861954,0.002,2943.5,2943.4,5.73776875]
[1764032862581,0.002,2943.5,2943.4,4.13722565]
[1764032863089,0.002,2943.5,2943.4,3.41163154]
[1764032863293,0.002,2943.5,2943.4,0.0071]
[1764032863479,0.002,2943.5,2943.4,3.41163154]
[1764032863680,0.002,2943.5,2943.2,3.39863306]
[1764032864697,0.002,2943.5,2943.2,0.001]
[1764032865720,0.002,2943.5,2943.4,0.0071]
[1764032866078,0.002,2943.5,2943.2,0.001]
[1764032867492,0.216,2943.4,2943.2,0.001]
[1764032868408,0.216,2943.4,2943.3,0.0071]
[1764032868912,0.216,2943.4,2943.3,3.40464697]
[1764032869451,0.216,2943.4,2943.3,0.0071]
[1764032869585,0.216,2943.4,2943.3,3.40464697]
[1764032869786,0.216,2943.4,2943.3,0.0071]
[1764032870092,0.216,2943.4,2943.3,3.40464697]
[1764032870602,0.216,2943.4,2943.3,0.0071]
[1764032871024,0.216,2943.4,2943.2,3.39863613]
[1764032871319,0.216,2943.4,2943.3,0.0071]
[1764032872801,0.216,2943.4,2943.3,3.40464697]
[1764032873590,0.216,2943.4,2943.3,0.0071]
[1764032873796,0.216,2943.4,2943.3,3.40464697]
[1764032876430,0.216,2943.4,2943.2,0.001]
[1764032876740,0.216,2943.4,2943.2,3.39862946]
[1764032877228,0.216,2943.4,2943.2,0.001]
[1764032877602,0.216,2943.4,2943.3,0.0071]
[1764032878512,0.216,2943.4,2943.3,0.0142]
[1764032878824,0.216,2943.4,2943.3,0.0071]
[1764032879031,0.216,2943.4,2943.2,0.001]
[1764032880331,0.4956,2943.3,2943.2,0.001]
[1764032880504,0.9777,2943.3,2943.2,0.001]
[1764032881134,2.09464281,2943.3,2943.2,0.001]
[1764032881514,1.61254281,2943.3,2943.2,0.001]
[1764032881714,1.29559252,2943.3,2943.2,0.001]
[1764032882635,4.69313949,2943.3,2943.2,0.001]
[1764032882840,1.29559252,2943.3,2943.2,0.001]
[1764032883136,4.69313949,2943.3,2943.2,0.001]
[1764032883745,1.29559252,2943.3,2943.2,0.001]
[1764032884052,5.59653982,2943.3,2943.2,0.001]
[1764032884352,6.32213393,2943.3,2943.2,0.001]
[1764032884518,9.83869393,2943.3,2943.2,0.001]
[1764032884713,8.85969393,2943.3,2943.2,0.001]
[1764032884918,6.32213393,2943.3,2943.2,0.001]
[1764032885316,2.92458696,2943.3,2943.2,0.001]
[1764032885822,2.02118663,2943.3,2943.2,0.001]
[1764032886346,5.4187336,2943.3,2943.2,0.001]
[1764032887256,2.02118663,2943.3,2943.2,0.001]
[1764032887459,1.75508663,2943.3,2943.2,0.001]
[1764032889151,2.23718663,2943.3,2943.2,0.001]
[1764032889321,2.46110529,2943.3,2943.2,0.001]
[1764032889521,1.48340529,2943.3,2943.2,0.001]
[1764032889830,1.48340529,2943.3,2943.2,0.0081]
[1764032889831,0.75781118,2943.3,2943.2,0.0081]
[1764032890041,1.51159252,2943.3,2943.2,0.001]
[1764032890344,0.53389252,2943.3,2943.2,0.001]
[1764032891139,1.02949252,2943.3,2943.2,0.001]
[1764032891340,1.51159252,2943.3,2943.2,0.001]
[1764032891983,1.51172151,2943.3,2943.2,0.001]
[1764032892254,2.00284708,2943.3,2943.2,0.001]
[1764032892457,5.40039405,2943.3,2943.2,0.001]
[1764032892628,8.19434605,2943.3,2943.2,0.001]
[1764032893023,5.40039405,2943.3,2943.2,0.001]
[1764032893272,8.13727605,2943.3,2943.2,0.001]
[1764032893477,6.13340731,2943.3,2943.2,0.001]
[1764032893641,5.40039405,2943.3,2943.2,0.001]
[1764032893960,2.00284708,2943.3,2943.2,0.001]
[1764032894163,1.78684708,2943.3,2943.2,0.001]
[1764032894363,1.51172151,2943.3,2943.2,0.001]
[1764032894667,0.53402151,2943.3,2943.2,0.0081]
[1764032894849,1.02962151,2943.3,2943.2,0.001]
[1764032895048,0.53402151,2943.3,2943.2,0.001]
[1764032895464,0.53402151,2943.3,2943.2,0.0081]
[1764032895973,1.02962151,2943.3,2943.2,0.001]
[1764032896167,0.53402151,2943.3,2943.2,0.001]
[1764032897446,1.51172151,2943.3,2943.2,0.001]
[1764032897642,5.63486259,2943.3,2943.2,0.001]
[1764032897848,6.19854885,2943.3,2943.2,0.001]
[1764032898047,8.70230885,2943.3,2943.2,0.001]
[1764032898544,13.68661061,2943.3,2943.2,0.001]
[1764032898749,3.53413965,2943.3,2943.2,0.001]
[1764032898948,6.93168662,2943.3,2943.2,0.001]
[1764032899750,16.04869062,2943.3,2943.2,0.001]
[1764032900579,14.59514862,2943.3,2943.2,0.001]
[1764032900743,37.92154374,2943.3,2943.2,0.001]
[1764032900948,38.9310151,2943.3,2943.2,0.001]
[1764032901159,38.01833339,2943.3,2943.2,0.001]
[1764032901482,39.23656224,2943.3,2943.2,0.001]
[1764032902466,39.23656224,2943.3,2942.9,0.001]
[1764032902467,0.405504,2943.0,2942.9,0.001]
[1764032902670,26.71280116,2943.0,2942.9,0.001]
[1764032902848,28.45112616,2943.0,2942.9,0.001]
[1764032903176,27.31779545,2943.0,2942.9,0.001]
[1764032903377,24.56974545,2943.0,2942.9,0.001]
[1764032903575,30.50954974,2943.0,2942.9,0.001]
[1764032903873,11.60103074,2943.0,2942.9,0.001]
[1764032904482,34.70617229,2943.0,2942.9,0.001]
[1764032904869,42.51616329,2943.0,2942.9,0.001]
[1764032905484,13.33801997,2943.0,2942.9,0.001]
[1764032905855,7.16469298,2943.0,2942.9,0.001]
[1764032906065,2.54880557,2943.0,2942.9,0.001]
[1764032906270,0.79372151,2943.0,2942.9,0.001]
[1764032906471,1.51931562,2943.0,2942.9,0.001]
[1764032906656,1.04361562,2943.0,2942.9,0.001]
[1764032907002,0.31802151,2943.0,2942.9,0.001]
[1764032907463,1.4877468,2943.0,2942.9,0.001]
[1764032907659,5.8537401,2943.0,2942.9,0.001]
[1764032908272,2.4558468,2943.0,2942.9,0.001]
[1764032908472,5.40960892,2943.0,2942.9,0.001]
[1764032908884,19.4653534,2943.0,2942.9,0.001]
[1764032909064,0.31802151,2943.0,2942.9,0.0081]
[1764032909259,0.53402151,2943.0,2942.9,0.001]
[1764032909460,1.50212151,2943.0,2942.9,0.001]
[1764032909898,1.72474407,2943.0,2942.9,0.001]
[1764032910065,0.53387251,2943.0,2942.9,0.001]
[1764032910713,0.53387251,2943.0,2942.9,0.0081]
[1764032911285,0.216,2943.0,2942.9,0.0152]
[1764032911891,0.216,2943.0,2942.9,3.41320876]
[1764032912998,0.002,2943.5,2942.9,6.81121752]
[1764032913169,0.218,2943.5,2943.4,0.0071]
[1764032913885,0.218,2943.5,2943.1,3.3977074]
[1764032914511,0.218,2943.5,2943.4,0.0071]
[1764032915572,0.218,2943.5,2943.4,3.41163154]
[1764032915805,0.218,2943.5,2943.4,0.0142]
[1764032916480,0.218,2943.5,2943.4,0.0071]
[1764032916965,0.218,2943.5,2943.4,3.41163154]
[1764032917170,0.002,2943.8,2943.4,10.61199862]
[1764032917369,0.002,2943.8,2943.7,0.0071]
[1764032917803,0.002,2944.1,2943.7,10.2054559]
[1764032917984,0.002,2944.1,2944.0,0.0071]
[1764032918397,0.002,2944.1,2944.0,0.0142]
[1764032920090,0.002,2944.1,2944.0,3.41093913]
[1764032920287,0.002,2944.2,2944.0,4.54203724]
[1764032920486,0.002,2944.4,2944.1,0.73979411]
[1764032920693,0.002,2944.4,2944.3,0.0071]
[1764032921192,0.002,2944.4,2944.3,0.0142]
[1764032921414,0.002,2944.4,2944.3,0.64878827]
[1764032921912,0.002,2944.4,2944.3,0.77178827]
[1764032922113,0.002,2944.4,2944.3,4.89377541]
[1764032922291,0.002,2944.4,2944.3,4.98677541]
[1764032922477,0.002,2944.5,2944.4,1.13109811]
[1764032922683,0.002,2944.5,2944.4,1.23829811]
[1764032923988,0.002,2944.5,2944.4,4.63457578]
[1764032924319,0.002,2944.5,2944.4,4.54157578]
[1764032924489,0.002,2944.5,2944.4,4.75757578]
[1764032925387,0.002,2944.5,2944.4,4.85057578]
[1764032926115,0.002,2944.5,2944.4,4.75757578]
[1764032927219,0.002,2944.5,2944.4,4.54157578]
[1764032927402,0.002,2944.5,2944.4,4.79153855]
[1764032928695,0.002,2944.5,2944.4,4.75757578]
[1764032929208,0.002,2944.5,2944.4,4.79153855]
[1764032929390,0.216,2945.9,2944.6,0.498504]
[1764032929590,0.216,2945.9,2944.6,0.505604]
[1764032929791,0.002,2946.0,2944.6,0.512704]
[1764032930010,0.1972,2945.9,2944.6,0.512704]
[1764032930216,0.002,2946.0,2944.6,4.54134511]
[1764032930414,0.002,2946.0,2944.6,4.66830558]
[1764032930617,0.002,2946.0,2944.6,4.63434511]
[1764032930830,0.002,2946.0,2944.7,7.70917618]
[1764032931033,0.002,2946.0,2944.7,7.72337618]
[1764032931626,0.002,2946.0,2944.7,7.85943083]
[1764032932329,0.002,2946.0,2944.7,11.2553625]
[1764032933706,0.1972,2945.9,2944.7,11.2553625]
[1764032933908,0.4703,2945.8,2944.7,11.3783625]
[1764032934107,0.1972,2945.9,2944.7,11.3783625]
[1764032935199,0.1972,2945.9,2944.7,11.4713625]
[1764032935800,0.1972,2945.9,2944.7,4.67728443]
[1764032935801,0.4964,2945.8,2944.7,4.67728443]
[1764032936034,0.4964,2945.8,2944.7,4.89328443]
[1764032936231,0.4964,2945.5,2944.7,4.67018443]
[1764032936413,0.4964,2945.5,2944.7,4.88618443]
[1764032936815,0.4964,2945.5,2944.7,4.89328443]
[1764032937632,0.002,2945.1,2944.7,4.89328443]
[1764032937801,0.002,2945.1,2944.7,4.98628443]
[1764032938522,0.002,2945.1,2944.7,5.02024374]
[1764032938727,0.002,2945.1,2944.7,4.98628443]
[1764032939123,0.002,2945.1,2944.7,8.84628443]
[1764032940053,0.002,2945.1,2945.0,0.498504]
[1764032940202,0.002,2945.4,2945.2,3.39535515]
[1764032940406,0.002,2946.0,2945.2,3.39535515]
[1764032940407,0.002,2946.0,2945.8,0.405504]
[1764032940650,0.002,2946.0,2945.9,7.83927618]
[1764032940814,0.002,2946.0,2945.9,7.84637618]
[1764032941014,0.002,2946.0,2945.9,7.98238549]
[1764032941234,0.002,2946.0,2945.9,1.49020742]
[1764032941435,0.002,2946.0,2945.9,1.49730742]
[1764032942028,0.002,2946.0,2945.9,7.98238549]
[1764032942253,1e-08,2946.2,2946.0,1.13109811]
[1764032942455,1e-08,2946.2,2946.1,4.62551602]
[1764032942661,1e-08,2946.2,2946.1,4.53251602]
[1764032942946,1e-08,2946.2,2946.1,4.33591202]
[1764032943547,1e-08,2946.2,2946.1,4.84761602]
[1764032943720,1e-08,2946.2,2946.1,4.74751602]
[1764032944524,1e-08,2946.2,2946.1,4.11991202]
[1764032944723,0.46440001,2946.2,2946.1,4.11991202]
[1764032944923,1e-08,2946.2,2946.1,4.11991202]
[1764032946750,1e-08,2946.2,2946.1,4.12701202]
[1764032947254,1e-08,2946.2,2946.1,4.57355919]
[1764032947730,1e-08,2946.2,2946.1,4.56645919]
[1764032948139,1e-08,2946.2,2946.1,4.53251602]
[1764032948348,1e-08,2946.2,2946.1,4.53961602]
[1764032948551,1e-08,2946.2,2946.1,4.53251602]
[1764032949444,1e-08,2946.2,2946.1,4.57355919]
[1764032949957,0.002,2946.6,2946.5,0.093]
[1764032950158,0.002,2946.8,2946.6,1.13109811]
[1764032950458,0.002,2946.8,2946.7,0.505604]
[1764032950663,0.002,2947.2,2947.0,0.405504]
[1764032950852,0.002,2947.2,2947.0,7.93127618]
[1764032951172,0.002,2947.2,2947.0,7.93837618]
[1764032951383,0.002,2947.7,2947.3,0.0071]
[1764032951529,0.002,2947.7,2947.4,7.52577218]
[1764032951874,0.002,2947.7,2947.4,7.43277218]
[1764032952031,0.002,2947.7,2947.4,7.83827618]
[1764032952228,0.002,2947.7,2947.4,7.84537618]
[1764032952479,0.002,2947.7,2947.4,7.93837618]
[1764032952784,0.002,2947.7,2947.5,1.13109811]
[1764032952927,0.002,2947.7,2947.6,0.505604]
[1764032953275,0.1857,2949.0,2948.2,0.405504]
[1764032953438,0.4964,2949.2,2948.4,1.22409811]
[1764032953832,0.4964,2949.2,2948.4,1.13109811]
[1764032954173,0.4964,2949.2,2948.5,1.23418964]
[1764032954659,0.6501,2948.6,2948.5,5.13633877]
[1764032955159,1.1465,2948.6,2948.5,5.13633877]
[1764032955658,1.1465,2948.6,2948.5,4.41074466]
[1764032956240,0.4964,2949.3,2948.6,0.72559411]
[1764032956442,0.4964,2949.3,2948.6,0.94059411]
[1764032956678,0.4964,2949.3,2948.7,6.78264998]
[1764032956971,0.4964,2949.3,2948.7,10.17397497]
[1764032957266,0.4964,2949.3,2948.7,6.78264998]
[1764032957773,0.6501,2948.8,2948.7,4.1169191]
[1764032958146,1.1465,2948.8,2948.7,4.1169191]
[1764032958650,0.4964,2949.1,2948.7,10.89956908]
[1764032958852,0.1857,2950.0,2948.7,10.89956908]
[1764032959053,0.4964,2949.9,2948.7,10.89956908]
[1764032960857,0.68,2948.8,2948.7,4.1169191]
[1764032961987,1.1301,2948.8,2948.7,4.1169191]
[1764032963546,1.1301,2948.8,2948.3,0.72559411]
[1764032963746,0.4851,2948.4,2948.3,0.72559411]
[1764032964149,0.4501,2948.7,2948.3,0.72559411]
[1764032964586,0.4851,2948.4,2948.3,0.72559411]
[1764032964748,0.4501,2948.7,2948.3,0.72559411]
[1764032964954,0.1949,2948.8,2948.4,6.7833401]
[1764032965167,0.1949,2948.8,2948.5,0.215]
[1764032965368,0.645,2948.8,2948.5,0.215]
[1764032965779,0.1949,2948.8,2948.5,0.215]
[1764032965981,0.4851,2948.6,2948.5,0.215]
[1764032966181,0.645,2948.8,2948.5,0.215]
[1764032966351,0.4501,2949.4,2948.5,0.215]
[1764032966984,0.4501,2949.4,2948.6,10.17432]
[1764032967383,0.68,2948.7,2948.6,3.39144]
[1764032967584,1.1301,2948.7,2948.6,3.39144]
[1764032968157,0.1949,2948.9,2948.6,10.17432]
[1764032968757,0.4851,2948.7,2948.6,3.39144]
[1764032969195,0.9352,2948.7,2948.6,3.39144]
[1764032969481,0.1949,2948.9,2948.6,6.78288]
[1764032969659,0.4851,2948.7,2948.6,3.39144]
[1764032970189,0.9352,2948.7,2948.6,3.39144]
[1764032970973,0.1949,2948.9,2948.6,6.78288]
[1764032971385,0.645,2948.9,2948.6,6.78288]
[1764032971910,0.4501,2948.8,2948.6,6.78288]
[1764032972405,0.4851,2948.7,2948.6,3.39144]
[1764032972776,0.9352,2948.7,2948.6,3.39144]
[1764032973578,0.4851,2948.7,2948.6,3.39144]
[1764032974590,0.1949,2948.9,2948.6,6.78288]
[1764032974812,0.645,2948.9,2948.6,6.78288]
[1764032975710,0.4851,2948.7,2948.6,3.39144]
[1764032976217,0.1949,2948.9,2948.6,6.78288]
[1764032976396,0.4501,2949.2,2948.6,10.18142]
[1764032976927,0.4501,2949.2,2948.6,10.17432]
[1764032977081,0.68,2948.7,2948.6,3.39144]
[1764032977479,1.1301,2948.7,2948.4,3.39163361]
[1764032977825,0.4851,2948.5,2948.4,3.39163361]
[1764032977999,0.4851,2948.5,2948.3,3.39177765]
[1764032978197,0.9352,2948.4,2948.1,3.39199021]
[1764032978396,0.4851,2948.2,2948.0,3.39211162]
[1764032978598,0.68,2947.9,2947.6,0.001]
[1764032978789,0.4851,2947.7,2947.6,0.001]
[1764032979184,0.9352,2947.7,2947.6,0.001]
[1764032980496,0.9352,2947.7,2947.4,0.001]
[1764032980701,0.4851,2947.5,2947.4,0.001]